[Event "*** Titled Tuesday Blitz"]
[Site "Chess.com"]
[Date "2020.04.28"]
[Round "9"]
[White "fastestmindalive"]
[Black "Hikaru"]
[Result "0-1"]
[WhiteElo "2841"]
[BlackElo "3238"]
[TimeControl "180+1"]
[EndTime "11:47:25 PDT"]
[Termination "Hikaru won on time"]

1. e4 {[%clk 0:03:00.9]} 1... c6 {[%clk 0:02:58.5]} 2. Nc3 {[%clk 0:02:59]} 2...
d5 {[%clk 0:02:58.6]} 3. Nf3 {[%clk 0:02:59.7]} 3... Bg4 {[%clk 0:02:58.6]} 4.
h3 {[%clk 0:02:59.3]} 4... Bh5 {[%clk 0:02:59.3]} 5. Be2 {[%clk 0:02:56.1]} 5...
e6 {[%clk 0:02:56.9]} 6. O-O {[%clk 0:02:55.6]} 6... Nd7 {[%clk 0:02:53]} 7. d3
{[%clk 0:02:55]} 7... Bd6 {[%clk 0:02:51.8]} 8. Re1 {[%clk 0:02:51.9]} 8... Ne7
{[%clk 0:02:49.4]} 9. Nd2 {[%clk 0:02:50.8]} 9... Bxe2 {[%clk 0:02:46.9]} 10.
Qxe2 {[%clk 0:02:50.6]} 10... O-O {[%clk 0:02:46.9]} 11. Nf3 {[%clk 0:02:49.3]}
11... Ng6 {[%clk 0:02:46.6]} 12. Bd2 {[%clk 0:02:47.7]} 12... Re8 {[%clk
0:02:31.1]} 13. Rad1 {[%clk 0:02:47.1]} 13... Qc7 {[%clk 0:02:29.5]} 14. Bc1
{[%clk 0:02:46.3]} 14... Bb4 {[%clk 0:02:27.1]} 15. Bd2 {[%clk 0:02:43.7]} 15...
Bd6 {[%clk 0:02:25.5]} 16. Bc1 {[%clk 0:02:43.5]} 16... Rad8 {[%clk 0:02:26.1]}
17. d4 {[%clk 0:02:30.8]} 17... Bb4 {[%clk 0:02:24.8]} 18. Bd2 {[%clk
0:02:29.1]} 18... Bxc3 {[%clk 0:02:21.6]} 19. Bxc3 {[%clk 0:02:30]} 19... Nf6
{[%clk 0:02:21.8]} 20. Nd2 {[%clk 0:02:17.2]} 20... c5 {[%clk 0:02:13.1]} 21.
dxc5 {[%clk 0:02:09.8]} 21... d4 {[%clk 0:02:13.3]} 22. Bb4 {[%clk 0:02:09.8]}
22... d3 {[%clk 0:02:14]} 23. cxd3 {[%clk 0:02:08.2]} 23... Nf4 {[%clk
0:02:13.7]} 24. Qf3 {[%clk 0:01:21.3]} 24... Nxd3 {[%clk 0:02:13.5]} 25. Bc3
{[%clk 0:01:21]} 25... Nxe1 {[%clk 0:02:13.6]} 26. Rxe1 {[%clk 0:01:18.5]} 26...
Qxc5 {[%clk 0:02:13.8]} 27. Qg3 {[%clk 0:00:47.6]} 27... e5 {[%clk 0:02:02]} 28.
Nf3 {[%clk 0:00:40.6]} 28... Rd3 {[%clk 0:01:59.7]} 29. Qg5 {[%clk 0:00:33.2]}
29... Nd7 {[%clk 0:01:55.1]} 30. Rc1 {[%clk 0:00:27.7]} 30... f6 {[%clk
0:01:47.4]} 31. Qh5 {[%clk 0:00:26.7]} 31... Qe7 {[%clk 0:01:38.1]} 32. Bb4
{[%clk 0:00:23.7]} 32... Qf7 {[%clk 0:01:10.7]} 33. Qxf7+ {[%clk 0:00:23.4]}
33... Kxf7 {[%clk 0:01:11]} 34. Rc7 {[%clk 0:00:24.1]} 34... Rd1+ {[%clk
0:00:59.4]} 35. Kh2 {[%clk 0:00:23.8]} 35... Ke6 {[%clk 0:00:58.6]} 36. Kg3
{[%clk 0:00:23]} 36... g6 {[%clk 0:00:46.6]} 37. h4 {[%clk 0:00:23]} 37... h5
{[%clk 0:00:46.6]} 38. Rxb7 {[%clk 0:00:20.6]} 38... Rb8 {[%clk 0:00:46.2]} 39.
Rxb8 {[%clk 0:00:16.3]} 39... Nxb8 {[%clk 0:00:47.1]} 40. Ne1 {[%clk 0:00:09.7]}
40... Rd4 {[%clk 0:00:44.7]} 41. Bc3 {[%clk 0:00:08]} 41... Rxe4 {[%clk
0:00:45.1]} 42. Nd3 {[%clk 0:00:08.6]} 42... Rc4 {[%clk 0:00:42.8]} 43. f3
{[%clk 0:00:06.5]} 43... Nd7 {[%clk 0:00:41.6]} 44. Nf2 {[%clk 0:00:02.9]} 44...
Nc5 {[%clk 0:00:40.5]} 45. Kh3 {[%clk 0:00:03]} 45... Na4 {[%clk 0:00:40.1]} 46.
Ba5 {[%clk 0:00:03.2]} 46... Nxb2 {[%clk 0:00:40]} 47. Ne4 {[%clk 0:00:02.8]}
47... Nd3 {[%clk 0:00:40.3]} 48. Bd8 {[%clk 0:00:02]} 48... f5 {[%clk
0:00:36.4]} 49. Ng5+ {[%clk 0:00:01.2]} 49... Kd7 {[%clk 0:00:35.4]} 50. Bf6
{[%clk 0:00:02.1]} 50... Rc2 {[%clk 0:00:35.4]} 51. Kg3 {[%clk 0:00:02.2]} 51...
f4+ {[%clk 0:00:32.8]} 52. Kh2 {[%clk 0:00:02.2]} 52... Kd6 {[%clk 0:00:32.3]}
53. Bg7 {[%clk 0:00:01.2]} 53... Kd5 {[%clk 0:00:28.8]} 54. Nf7 {[%clk
0:00:01.5]} 54... Rc1 {[%clk 0:00:28.1]} 55. Ng5 {[%clk 0:00:01.5]} 55... Nf2
{[%clk 0:00:28]} 56. g3 {[%clk 0:00:02.2]} 56... fxg3+ {[%clk 0:00:27.8]} 57.
Kxg3 {[%clk 0:00:03.1]} 57... Nd3 {[%clk 0:00:28.7]} 58. Ne4 {[%clk 0:00:02.9]}
58... Rc2 {[%clk 0:00:28.5]} 59. Nf6+ {[%clk 0:00:03]} 59... Ke6 {[%clk
0:00:28.2]} 60. Ne4 {[%clk 0:00:03.9]} 60... Nf4 {[%clk 0:00:27.5]} 61. Nf2
{[%clk 0:00:03.8]} 61... Kf5 {[%clk 0:00:27.3]} 62. Bf8 {[%clk 0:00:03.2]} 62...
Rxa2 {[%clk 0:00:27.5]} 63. Bd6 {[%clk 0:00:02.9]} 63... a6 {[%clk 0:00:27.6]}
64. Bc5 {[%clk 0:00:02.7]} 64... a5 {[%clk 0:00:28.2]} 65. Bb6 {[%clk
0:00:02.9]} 65... a4 {[%clk 0:00:28.6]} 66. Bc5 {[%clk 0:00:01.7]} 66... Rc2
{[%clk 0:00:28.8]} 67. Bb4 {[%clk 0:00:01.5]} 67... Ra2 {[%clk 0:00:28.5]} 68.
Bc5 {[%clk 0:00:01.6]} 68... a3 {[%clk 0:00:28.9]} 0-1

[Event "*** Titled Tuesday Blitz"]
[Site "Chess.com"]
[Date "2020.04.28"]
[Round "9"]
[White "WhiteCapital80"]
[Black "EnergeticHay"]
[Result "1-0"]
[WhiteElo "2408"]
[BlackElo "2223"]
[TimeControl "180+1"]
[EndTime "11:47:25 PDT"]
[Termination "WhiteCapital80 won by resignation"]

1. e4 {[%clk 0:03:00.9]} 1... c5 {[%clk 0:03:00.1]} 2. Nf3 {[%clk 0:03:00.8]}
2... d6 {[%clk 0:03:00.5]} 3. d4 {[%clk 0:03:00.9]} 3... cxd4 {[%clk 0:03:01.4]}
4. Nxd4 {[%clk 0:02:59.9]} 4... Nf6 {[%clk 0:03:01.9]} 5. Nc3 {[%clk 0:02:59.8]}
5... a6 {[%clk 0:03:02.5]} 6. Be2 {[%clk 0:02:59.7]} 6... e6 {[%clk 0:03:01.9]}
7. O-O {[%clk 0:02:59.6]} 7... Qc7 {[%clk 0:03:00.3]} 8. f4 {[%clk 0:02:59.5]}
8... b5 {[%clk 0:02:56.7]} 9. Bf3 {[%clk 0:02:59.2]} 9... Bb7 {[%clk 0:02:57.1]}
10. e5 {[%clk 0:02:59.1]} 10... dxe5 {[%clk 0:02:56.1]} 11. fxe5 {[%clk
0:02:57.5]} 11... Nfd7 {[%clk 0:02:53.5]} 12. Bf4 {[%clk 0:02:54.9]} 12... Nc6
{[%clk 0:02:51.4]} 13. Kh1 {[%clk 0:02:47.7]} 13... Nxd4 {[%clk 0:02:43]} 14.
Qxd4 {[%clk 0:02:35.4]} 14... Bc5 {[%clk 0:02:41.1]} 15. Qd2 {[%clk 0:02:29.4]}
15... Bxf3 {[%clk 0:02:08.3]} 16. Rxf3 {[%clk 0:02:29.2]} 16... Qc6 {[%clk
0:01:38.5]} 17. Rd3 {[%clk 0:02:15.3]} 17... O-O-O {[%clk 0:01:30.6]} 18. Rd1
{[%clk 0:02:09]} 18... h6 {[%clk 0:01:06.7]} 19. Qe2 {[%clk 0:01:32.5]} 19... g5
{[%clk 0:01:04.5]} 20. Bg3 {[%clk 0:01:31.5]} 20... Nb6 {[%clk 0:00:53.2]} 21.
Ne4 {[%clk 0:01:25.7]} 21... Nd5 {[%clk 0:00:46.9]} 22. b3 {[%clk 0:01:16.6]}
22... Nb4 {[%clk 0:00:34.2]} 23. Rxd8+ {[%clk 0:01:02.9]} 23... Rxd8 {[%clk
0:00:33.2]} 24. Rxd8+ {[%clk 0:01:02.8]} 24... Kxd8 {[%clk 0:00:34.1]} 25. c4
{[%clk 0:01:02.5]} 25... Kc8 {[%clk 0:00:19.9]} 26. h3 {[%clk 0:00:59.6]} 26...
Kb8 {[%clk 0:00:18.9]} 27. Nxc5 {[%clk 0:00:56.4]} 27... Qxc5 {[%clk 0:00:19.2]}
28. Bf2 {[%clk 0:00:56.3]} 28... Qc6 {[%clk 0:00:18.6]} 29. Qd2 {[%clk
0:00:51.9]} 29... a5 {[%clk 0:00:14.6]} 30. a3 {[%clk 0:00:48.9]} 30... Na6
{[%clk 0:00:14.2]} 31. Qxa5 {[%clk 0:00:45.4]} 31... bxc4 {[%clk 0:00:14.2]} 32.
bxc4 {[%clk 0:00:43.7]} 32... Qxc4 {[%clk 0:00:14.1]} 33. Qb6+ {[%clk
0:00:41.2]} 33... Kc8 {[%clk 0:00:13.7]} 34. Be3 {[%clk 0:00:33.4]} 34... Nc7
{[%clk 0:00:12.2]} 35. Qc5 {[%clk 0:00:30.7]} 35... Qxc5 {[%clk 0:00:12]} 36.
Bxc5 {[%clk 0:00:30.8]} 36... Nd5 {[%clk 0:00:12.3]} 37. Kg1 {[%clk 0:00:30.2]}
37... Kd7 {[%clk 0:00:12.7]} 38. Kf2 {[%clk 0:00:29.4]} 38... Kc6 {[%clk
0:00:13.2]} 39. Bd6 {[%clk 0:00:28.7]} 39... h5 {[%clk 0:00:13.5]} 40. g3 {[%clk
0:00:28.3]} 40... Kb5 {[%clk 0:00:13.8]} 41. Kf3 {[%clk 0:00:24.9]} 41... Kc4
{[%clk 0:00:13.4]} 42. g4 {[%clk 0:00:24.7]} 42... hxg4+ {[%clk 0:00:13.2]} 43.
hxg4 {[%clk 0:00:24.6]} 43... Kd3 {[%clk 0:00:12.4]} 44. a4 {[%clk 0:00:22.7]}
44... Kd4 {[%clk 0:00:10.3]} 45. a5 {[%clk 0:00:22.3]} 45... Kc4 {[%clk
0:00:08.1]} 46. a6 {[%clk 0:00:19.7]} 46... Kb5 {[%clk 0:00:08.2]} 47. a7 {[%clk
0:00:19.7]} 47... Nb6 {[%clk 0:00:08.8]} 48. Bc7 {[%clk 0:00:17.8]} 48... Na8
{[%clk 0:00:09]} 49. Bd8 {[%clk 0:00:16.9]} 49... Ka6 {[%clk 0:00:08.7]} 50.
Bxg5 {[%clk 0:00:17]} 50... Kxa7 {[%clk 0:00:09.2]} 51. Bd8 {[%clk 0:00:17]}
51... Kb7 {[%clk 0:00:07.4]} 52. Kf4 {[%clk 0:00:17.3]} 52... Nc7 {[%clk
0:00:07]} 53. Bxc7 {[%clk 0:00:16.9]} 53... Kxc7 {[%clk 0:00:07.9]} 54. Kg5
{[%clk 0:00:17.4]} 54... Kd7 {[%clk 0:00:08.2]} 55. Kf6 {[%clk 0:00:17.8]} 55...
Ke8 {[%clk 0:00:08.8]} 56. Kg7 {[%clk 0:00:17.5]} 56... Ke7 {[%clk 0:00:08.8]}
57. g5 {[%clk 0:00:15.7]} 57... Ke8 {[%clk 0:00:07]} 58. Kf6 {[%clk 0:00:15.9]}
58... Kf8 {[%clk 0:00:07.3]} 59. g6 {[%clk 0:00:16.4]} 59... fxg6 {[%clk
0:00:07.8]} 60. Kxg6 {[%clk 0:00:12.3]} 60... Ke7 {[%clk 0:00:08.2]} 61. Kg7
{[%clk 0:00:12.7]} 61... Kd7 {[%clk 0:00:05.7]} 62. Kf7 {[%clk 0:00:12.9]} 62...
Kd8 {[%clk 0:00:05.9]} 63. Kxe6 {[%clk 0:00:13.1]} 63... Ke8 {[%clk 0:00:06.6]}
64. Kd6 {[%clk 0:00:12.9]} 64... Kd8 {[%clk 0:00:05.4]} 65. e6 {[%clk
0:00:13.3]} 65... Ke8 {[%clk 0:00:04.8]} 66. e7 {[%clk 0:00:13.6]} 66... Kf7
{[%clk 0:00:05.1]} 67. Kd7 {[%clk 0:00:14.1]} 67... Kf6 {[%clk 0:00:06]} 1-0

[Event "*** Titled Tuesday Blitz"]
[Site "Chess.com"]
[Date "2020.04.28"]
[Round "9"]
[White "wild_cat99"]
[Black "GMSrinath"]
[Result "0-1"]
[WhiteElo "2580"]
[BlackElo "2752"]
[TimeControl "180+1"]
[EndTime "11:47:27 PDT"]
[Termination "GMSrinath won on time"]

1. Nf3 {[%clk 0:03:00.9]} 1... c5 {[%clk 0:02:59.2]} 2. e4 {[%clk 0:03:00.5]}
2... Nc6 {[%clk 0:02:59.1]} 3. d4 {[%clk 0:03:00.8]} 3... cxd4 {[%clk 0:03:00]}
4. Nxd4 {[%clk 0:03:01.7]} 4... Nf6 {[%clk 0:03:00]} 5. f3 {[%clk 0:03:01.8]}
5... e5 {[%clk 0:02:53.5]} 6. Nb5 {[%clk 0:02:55.7]} 6... d6 {[%clk 0:02:30.7]}
7. c4 {[%clk 0:02:52]} 7... Be7 {[%clk 0:02:10.3]} 8. N1c3 {[%clk 0:02:51.7]}
8... a6 {[%clk 0:02:10.2]} 9. Na3 {[%clk 0:02:51.6]} 9... O-O {[%clk 0:02:09.8]}
10. Be3 {[%clk 0:02:52]} 10... Nh5 {[%clk 0:02:05.7]} 11. Nc2 {[%clk 0:02:51.8]}
11... f5 {[%clk 0:02:04]} 12. exf5 {[%clk 0:02:44.6]} 12... Bxf5 {[%clk
0:02:04.9]} 13. Qd2 {[%clk 0:02:45.5]} 13... Nf4 {[%clk 0:01:57.2]} 14. g3
{[%clk 0:02:35.8]} 14... Ne6 {[%clk 0:01:56.2]} 15. Bg2 {[%clk 0:02:35.8]} 15...
Bxc2 {[%clk 0:01:55.7]} 16. Qxc2 {[%clk 0:02:36.7]} 16... Ned4 {[%clk
0:01:52.6]} 17. Qf2 {[%clk 0:02:32.9]} 17... Bg5 {[%clk 0:01:51.8]} 18. Bxg5
{[%clk 0:02:21.7]} 18... Qxg5 {[%clk 0:01:52.7]} 19. O-O {[%clk 0:02:22.3]}
19... Qh6 {[%clk 0:01:43.4]} 20. Ne4 {[%clk 0:02:21.5]} 20... Rf7 {[%clk
0:01:36.5]} 21. Qd2 {[%clk 0:01:52.4]} 21... Qg6 {[%clk 0:00:50.5]} 22. c5
{[%clk 0:01:36]} 22... dxc5 {[%clk 0:00:45.9]} 23. Nxc5 {[%clk 0:01:36.9]} 23...
Rd8 {[%clk 0:00:45.6]} 24. Qf2 {[%clk 0:01:15.6]} 24... Rdf8 {[%clk 0:00:39.6]}
25. f4 {[%clk 0:00:56.3]} 25... Kh8 {[%clk 0:00:26.2]} 26. Be4 {[%clk
0:00:55.7]} 26... Qd6 {[%clk 0:00:24.3]} 27. Nxb7 {[%clk 0:00:32.3]} 27... Rxb7
{[%clk 0:00:16]} 28. fxe5 {[%clk 0:00:32.1]} 28... Rxf2 {[%clk 0:00:16.5]} 29.
exd6 {[%clk 0:00:32.2]} 29... Rxf1+ {[%clk 0:00:17]} 30. Rxf1 {[%clk 0:00:32.8]}
30... Rb8 {[%clk 0:00:17.7]} 31. d7 {[%clk 0:00:22.2]} 31... Rd8 {[%clk
0:00:17.1]} 32. Rf7 {[%clk 0:00:09.4]} 32... Ne5 {[%clk 0:00:14.1]} 33. Re7
{[%clk 0:00:09]} 33... Nxd7 {[%clk 0:00:13.9]} 34. Kf2 {[%clk 0:00:07.1]} 34...
Nf6 {[%clk 0:00:13.6]} 35. Ke3 {[%clk 0:00:06.4]} 35... Nc2+ {[%clk 0:00:10.7]}
36. Kf4 {[%clk 0:00:05.6]} 36... Nb4 {[%clk 0:00:10.8]} 37. Ra7 {[%clk
0:00:04.9]} 37... h6 {[%clk 0:00:08.6]} 38. a3 {[%clk 0:00:04.2]} 38... Nbd5+
{[%clk 0:00:08.2]} 39. Bxd5 {[%clk 0:00:04.2]} 39... Nxd5+ {[%clk 0:00:08.7]}
40. Ke5 {[%clk 0:00:05.1]} 40... Ne3 {[%clk 0:00:09]} 41. Rxa6 {[%clk 0:00:05]}
41... Nc4+ {[%clk 0:00:09.5]} 42. Ke6 {[%clk 0:00:04.1]} 42... Nxb2 {[%clk
0:00:10.1]} 43. Ra7 {[%clk 0:00:04.1]} 43... Rf8 {[%clk 0:00:08.8]} 44. a4
{[%clk 0:00:02.4]} 44... Rf6+ {[%clk 0:00:09]} 45. Ke7 {[%clk 0:00:02.3]} 45...
Nc4 {[%clk 0:00:09]} 46. Ra8+ {[%clk 0:00:02.8]} 46... Kh7 {[%clk 0:00:08.7]}
47. a5 {[%clk 0:00:03.7]} 47... Rf1 {[%clk 0:00:05.6]} 48. a6 {[%clk 0:00:03.6]}
48... Ra1 {[%clk 0:00:06.1]} 49. a7 {[%clk 0:00:03.3]} 49... Ne5 {[%clk
0:00:06.2]} 50. Kd6 {[%clk 0:00:02.5]} 50... Ng4 {[%clk 0:00:05.7]} 51. Kc7
{[%clk 0:00:02.6]} 51... Nxh2 {[%clk 0:00:05.8]} 52. Kb7 {[%clk 0:00:02.8]}
52... Nf1 {[%clk 0:00:05.4]} 53. Re8 {[%clk 0:00:02.8]} 53... Rxa7+ {[%clk
0:00:05]} 54. Kxa7 {[%clk 0:00:03.7]} 54... Nxg3 {[%clk 0:00:05.9]} 55. Re3
{[%clk 0:00:03.7]} 55... h5 {[%clk 0:00:06.6]} 56. Rxg3 {[%clk 0:00:03.3]} 56...
Kh6 {[%clk 0:00:07.1]} 57. Kb6 {[%clk 0:00:03.1]} 57... h4 {[%clk 0:00:07.7]}
58. Rg1 {[%clk 0:00:02.2]} 58... g5 {[%clk 0:00:08.2]} 59. Kc5 {[%clk
0:00:02.3]} 59... h3 {[%clk 0:00:08.2]} 60. Kd4 {[%clk 0:00:01.9]} 60... Kh5
{[%clk 0:00:08.8]} 61. Ke3 {[%clk 0:00:01.6]} 61... Kh4 {[%clk 0:00:09.5]} 62.
Kf2 {[%clk 0:00:01.5]} 62... h2 {[%clk 0:00:10]} 0-1

[Event "*** Titled Tuesday Blitz"]
[Site "Chess.com"]
[Date "2020.04.28"]
[Round "9"]
[White "aakankshachess"]
[Black "GMStefanova"]
[Result "0-1"]
[WhiteElo "2491"]
[BlackElo "2713"]
[TimeControl "180+1"]
[EndTime "11:47:27 PDT"]
[Termination "GMStefanova won on time"]

1. e4 {[%clk 0:03:00.9]} 1... e5 {[%clk 0:02:59.6]} 2. Bc4 {[%clk 0:02:59.5]}
2... Nf6 {[%clk 0:02:57.5]} 3. d3 {[%clk 0:02:58.9]} 3... Nc6 {[%clk 0:02:51.8]}
4. Nc3 {[%clk 0:02:58.8]} 4... Bc5 {[%clk 0:02:50.7]} 5. f4 {[%clk 0:02:58.9]}
5... O-O {[%clk 0:02:49]} 6. Nf3 {[%clk 0:02:57.5]} 6... d6 {[%clk 0:02:47.7]}
7. f5 {[%clk 0:02:56.4]} 7... Na5 {[%clk 0:02:44.7]} 8. Bg5 {[%clk 0:02:54.7]}
8... Nxc4 {[%clk 0:02:40.3]} 9. dxc4 {[%clk 0:02:54.9]} 9... c6 {[%clk
0:02:39.1]} 10. Qd2 {[%clk 0:02:52.3]} 10... Kh8 {[%clk 0:02:38.4]} 11. h4
{[%clk 0:02:45.3]} 11... Bb4 {[%clk 0:02:37.4]} 12. Bxf6 {[%clk 0:02:33.6]}
12... Qxf6 {[%clk 0:02:32.9]} 13. g4 {[%clk 0:02:33.6]} 13... d5 {[%clk
0:02:29.2]} 14. cxd5 {[%clk 0:02:28.4]} 14... cxd5 {[%clk 0:02:25.8]} 15. exd5
{[%clk 0:02:12.3]} 15... e4 {[%clk 0:02:22]} 16. Nd4 {[%clk 0:02:10.6]} 16... e3
{[%clk 0:02:18]} 17. Qxe3 {[%clk 0:02:09.3]} 17... Bxf5 {[%clk 0:02:09.7]} 18.
O-O-O {[%clk 0:02:05.2]} 18... Bxg4 {[%clk 0:01:57]} 19. Rdf1 {[%clk 0:02:01.6]}
19... Qa6 {[%clk 0:01:46.7]} 20. a3 {[%clk 0:01:57.1]} 20... Bxc3 {[%clk
0:01:40.9]} 21. Qxc3 {[%clk 0:01:56.3]} 21... Rac8 {[%clk 0:01:40]} 22. Qg3
{[%clk 0:01:55.4]} 22... h5 {[%clk 0:01:33.4]} 23. Kb1 {[%clk 0:01:45.8]} 23...
Qc4 {[%clk 0:01:28.6]} 24. Rf4 {[%clk 0:01:31.6]} 24... Qxd5 {[%clk 0:01:26.9]}
25. Rg1 {[%clk 0:01:31.6]} 25... Rfd8 {[%clk 0:01:21.2]} 26. Nb3 {[%clk
0:01:24.1]} 26... f6 {[%clk 0:01:14.6]} 27. Qe3 {[%clk 0:01:11.8]} 27... a5
{[%clk 0:01:10.4]} 28. Rd4 {[%clk 0:00:58.3]} 28... Qf5 {[%clk 0:01:08.2]} 29.
Rxd8+ {[%clk 0:00:55.7]} 29... Rxd8 {[%clk 0:01:08.2]} 30. Qc3 {[%clk 0:00:52]}
30... a4 {[%clk 0:01:06.2]} 31. Nc1 {[%clk 0:00:40.5]} 31... Rc8 {[%clk
0:01:03.1]} 32. Qd2 {[%clk 0:00:40.6]} 32... b5 {[%clk 0:00:59.4]} 33. Nd3
{[%clk 0:00:40.1]} 33... Qd5 {[%clk 0:00:57.4]} 34. Re1 {[%clk 0:00:29]} 34...
Bf5 {[%clk 0:00:51.3]} 35. Qe2 {[%clk 0:00:19.8]} 35... Bxd3 {[%clk 0:00:47]}
36. cxd3 {[%clk 0:00:20.1]} 36... Rd8 {[%clk 0:00:37.1]} 37. Rd1 {[%clk
0:00:18.6]} 37... Qf5 {[%clk 0:00:37.1]} 38. Ka1 {[%clk 0:00:18]} 38... Qg4
{[%clk 0:00:35.5]} 39. Qe1 {[%clk 0:00:18.3]} 39... Rd4 {[%clk 0:00:32.7]} 40.
Qe8+ {[%clk 0:00:17.4]} 40... Kh7 {[%clk 0:00:32.1]} 41. Re1 {[%clk 0:00:17.6]}
41... Rxd3 {[%clk 0:00:29.9]} 42. Qxb5 {[%clk 0:00:13.8]} 42... Rd1+ {[%clk
0:00:26.1]} 43. Rxd1 {[%clk 0:00:14.1]} 43... Qxd1+ {[%clk 0:00:25.8]} 44. Ka2
{[%clk 0:00:15]} 44... Kh6 {[%clk 0:00:24.4]} 45. Qf5 {[%clk 0:00:13.1]} 45...
Qb3+ {[%clk 0:00:22.8]} 46. Ka1 {[%clk 0:00:13]} 46... Qc4 {[%clk 0:00:22.3]}
47. Qf2 {[%clk 0:00:09.4]} 47... Qg4 {[%clk 0:00:20.5]} 48. Qd2+ {[%clk
0:00:08.4]} 48... Kh7 {[%clk 0:00:19.7]} 49. Qc2+ {[%clk 0:00:08.2]} 49... g6
{[%clk 0:00:19.1]} 50. Qc7+ {[%clk 0:00:07.9]} 50... Kh6 {[%clk 0:00:18.7]} 51.
Qc1+ {[%clk 0:00:08]} 51... g5 {[%clk 0:00:18.3]} 52. hxg5+ {[%clk 0:00:08]}
52... Qxg5 {[%clk 0:00:18.5]} 53. Qc4 {[%clk 0:00:07.6]} 53... Qg4 {[%clk
0:00:17.5]} 54. Qf7 {[%clk 0:00:05.7]} 54... Qf3 {[%clk 0:00:13.6]} 55. Qf8+
{[%clk 0:00:04.9]} 55... Kg5 {[%clk 0:00:13.4]} 56. Qg7+ {[%clk 0:00:04.8]}
56... Kh4 {[%clk 0:00:13.5]} 57. Qg1 {[%clk 0:00:03.4]} 57... Qg4 {[%clk
0:00:10.5]} 58. Qh2+ {[%clk 0:00:03.1]} 58... Kg5 {[%clk 0:00:10]} 59. Qd2+
{[%clk 0:00:02.8]} 59... Qf4 {[%clk 0:00:09.4]} 60. Qg2+ {[%clk 0:00:02.5]}
60... Kh6 {[%clk 0:00:09.4]} 0-1

[Event "*** Titled Tuesday Blitz"]
[Site "Chess.com"]
[Date "2020.04.28"]
[Round "9"]
[White "keepitcool9499"]
[Black "PetrolulSah"]
[Result "1-0"]
[WhiteElo "2455"]
[BlackElo "2224"]
[TimeControl "180+1"]
[EndTime "11:47:27 PDT"]
[Termination "keepitcool9499 won by checkmate"]

1. d4 {[%clk 0:03:00.9]} 1... Nf6 {[%clk 0:02:58.3]} 2. c4 {[%clk 0:03:01.1]}
2... e6 {[%clk 0:02:55.3]} 3. Nc3 {[%clk 0:03:01.2]} 3... d5 {[%clk 0:02:53.9]}
4. Nf3 {[%clk 0:03:00.3]} 4... Be7 {[%clk 0:02:53.4]} 5. e3 {[%clk 0:03:00.2]}
5... O-O {[%clk 0:02:53.3]} 6. Bd3 {[%clk 0:03:00.6]} 6... Nbd7 {[%clk
0:02:50.7]} 7. O-O {[%clk 0:03:00.6]} 7... b6 {[%clk 0:02:50.8]} 8. e4 {[%clk
0:03:00.6]} 8... dxe4 {[%clk 0:02:44.6]} 9. Nxe4 {[%clk 0:03:01.5]} 9... Bb7
{[%clk 0:02:44.2]} 10. Nc3 {[%clk 0:02:38.9]} 10... c5 {[%clk 0:02:40.6]} 11. d5
{[%clk 0:02:34.4]} 11... exd5 {[%clk 0:02:32.6]} 12. cxd5 {[%clk 0:02:32]} 12...
Nxd5 {[%clk 0:02:30]} 13. Nxd5 {[%clk 0:02:29.8]} 13... Bxd5 {[%clk 0:02:29.4]}
14. Bxh7+ {[%clk 0:02:29.5]} 14... Kxh7 {[%clk 0:02:27.9]} 15. Qxd5 {[%clk
0:02:27.4]} 15... Nf6 {[%clk 0:02:26.6]} 16. Ng5+ {[%clk 0:02:22.5]} 16... Kg8
{[%clk 0:02:21.7]} 17. Qf5 {[%clk 0:02:22.5]} 17... Qd7 {[%clk 0:02:13.5]} 18.
Qc2 {[%clk 0:02:19]} 18... Rad8 {[%clk 0:02:09.7]} 19. Bf4 {[%clk 0:02:15.3]}
19... Qd3 {[%clk 0:02:07.5]} 20. Qxd3 {[%clk 0:01:58.8]} 20... Rxd3 {[%clk
0:02:04.8]} 21. Rfe1 {[%clk 0:01:58.6]} 21... Bd6 {[%clk 0:02:00.3]} 22. Bxd6
{[%clk 0:01:55.4]} 22... Rxd6 {[%clk 0:01:58.6]} 23. Re7 {[%clk 0:01:55.5]}
23... Rfd8 {[%clk 0:01:46.4]} 24. Kf1 {[%clk 0:01:46]} 24... Rd1+ {[%clk
0:01:42.4]} 25. Rxd1 {[%clk 0:01:43.8]} 25... Rxd1+ {[%clk 0:01:43.3]} 26. Ke2
{[%clk 0:01:37.9]} 26... Rd7 {[%clk 0:01:43]} 27. Rxd7 {[%clk 0:01:34.5]} 27...
Nxd7 {[%clk 0:01:43.9]} 28. Kd3 {[%clk 0:01:30.8]} 28... f6 {[%clk 0:01:27.9]}
29. Nf3 {[%clk 0:01:24.4]} 29... b5 {[%clk 0:01:20.6]} 30. Ke4 {[%clk
0:01:19.7]} 30... Nb6 {[%clk 0:01:20.2]} 31. Nd2 {[%clk 0:01:13.2]} 31... Kf7
{[%clk 0:01:11.5]} 32. Nb3 {[%clk 0:01:09.9]} 32... c4 {[%clk 0:01:06.5]} 33.
Nd4 {[%clk 0:01:07.3]} 33... a6 {[%clk 0:01:00.6]} 34. b3 {[%clk 0:01:02.8]}
34... g6 {[%clk 0:00:46]} 35. bxc4 {[%clk 0:00:59.6]} 35... Nxc4 {[%clk
0:00:45.8]} 36. Kd5 {[%clk 0:00:56.9]} 36... Ke7 {[%clk 0:00:45]} 37. Nc6+
{[%clk 0:00:51.7]} 37... Kf7 {[%clk 0:00:41.8]} 38. Nb8 {[%clk 0:00:37.3]} 38...
a5 {[%clk 0:00:40.1]} 39. Kc5 {[%clk 0:00:35.3]} 39... Na3 {[%clk 0:00:39.2]}
40. Nc6 {[%clk 0:00:31.7]} 40... a4 {[%clk 0:00:30.8]} 41. Kb4 {[%clk 0:00:27]}
41... Nc2+ {[%clk 0:00:23.4]} 42. Kxb5 {[%clk 0:00:25.2]} 42... a3 {[%clk
0:00:23.5]} 43. Kc4 {[%clk 0:00:19.8]} 43... Ke6 {[%clk 0:00:18.6]} 44. Nd4+
{[%clk 0:00:16.1]} 44... Nxd4 {[%clk 0:00:17.5]} 45. Kxd4 {[%clk 0:00:17]} 45...
Kf5 {[%clk 0:00:16.5]} 46. Kc3 {[%clk 0:00:14.5]} 46... Ke4 {[%clk 0:00:16.1]}
47. Kb3 {[%clk 0:00:14.8]} 47... Kd3 {[%clk 0:00:16]} 48. Kxa3 {[%clk
0:00:15.2]} 48... Ke2 {[%clk 0:00:16.6]} 49. Kb3 {[%clk 0:00:13.8]} 49... Kxf2
{[%clk 0:00:16.8]} 50. g4 {[%clk 0:00:13.6]} 50... g5 {[%clk 0:00:13.7]} 51. a4
{[%clk 0:00:13.2]} 51... Kg2 {[%clk 0:00:13.8]} 52. a5 {[%clk 0:00:13.1]} 52...
Kxh2 {[%clk 0:00:13.7]} 53. a6 {[%clk 0:00:13.5]} 53... Kg3 {[%clk 0:00:14.1]}
54. a7 {[%clk 0:00:13.9]} 54... Kxg4 {[%clk 0:00:14.3]} 55. a8=Q {[%clk
0:00:14.8]} 55... f5 {[%clk 0:00:14.4]} 56. Qg2+ {[%clk 0:00:14.5]} 56... Kh4
{[%clk 0:00:13.8]} 57. Kc3 {[%clk 0:00:13.9]} 57... f4 {[%clk 0:00:13.4]} 58.
Kd3 {[%clk 0:00:14.1]} 58... g4 {[%clk 0:00:13.6]} 59. Ke4 {[%clk 0:00:13.7]}
59... f3 {[%clk 0:00:13.6]} 60. Qh2+ {[%clk 0:00:13.6]} 60... Kg5 {[%clk
0:00:13.5]} 61. Qf4+ {[%clk 0:00:13.7]} 61... Kh4 {[%clk 0:00:13.2]} 62. Ke3
{[%clk 0:00:13]} 62... Kh3 {[%clk 0:00:10.6]} 63. Kf2 {[%clk 0:00:12.3]} 63...
g3+ {[%clk 0:00:10.5]} 64. Qxg3# {[%clk 0:00:12.4]} 1-0